[Event "Titled Tuesday Blitz November 22 Early 2022"]
[White "Kilic, Eray"]
[Black "Kodinets, Konstantin L."]
[WhiteFideId "44517173"]
[BlackFideId "4122011"]
[WhiteElo "2328"]
[BlackElo "2447"]
[Result "1-0"]
[Round "03"]
[TimeControl "180+1"]
[Date "2022.11.23"]
[WhiteClock "0:00:41"]
[BlackClock "0:00:51"]

1. e4 {[%clk 0:03:00]}  e5 {[%clk 0:02:58]} 2. Nf3 {[%clk 0:03:00]}  d6 {[%clk 0:02:59]} 3. d4 {[%clk 0:03:00]}  exd4 {[%clk 0:02:59]} 4. Nxd4 {[%clk 0:03:01]}  Nf6 {[%clk 0:03:00]} 5. Nc3 {[%clk 0:03:01]}  Be7 {[%clk 0:03:01]} 6. Bf4 {[%clk 0:02:58]}  O-O {[%clk 0:03:01]} 7. Qd2 {[%clk 0:02:59]}  Nc6 {[%clk 0:03:01]} 8. O-O-O {[%clk 0:02:58]}  Nxd4 {[%clk 0:03:02]} 9. Qxd4 {[%clk 0:02:59]}  a6 {[%clk 0:03:02]} 10. f3 {[%clk 0:02:58]}  b5 {[%clk 0:03:02]} 11. g4 {[%clk 0:02:58]}  c5 {[%clk 0:03:02]} 12. Qd2 {[%clk 0:02:58]}  b4 {[%clk 0:03:02]} 13. Nd5 {[%clk 0:02:58]}  Nxd5 {[%clk 0:03:03]} 14. exd5 {[%clk 0:02:57]}  Bh4 {[%clk 0:03:02]} 15. Bd3 {[%clk 0:02:55]}  a5 {[%clk 0:03:02]} 16. Bg3 {[%clk 0:02:53]}  a4 {[%clk 0:03:01]} 17. Bxh4 {[%clk 0:02:51]}  Qxh4 {[%clk 0:03:00]} 18. Qf4 {[%clk 0:02:51]}  Rd8 {[%clk 0:02:39]} 19. Rde1 {[%clk 0:02:48]}  Ba6 {[%clk 0:02:31]} 20. Bxa6 {[%clk 0:02:26]}  Rxa6 {[%clk 0:02:32]} 21. Re4 {[%clk 0:02:26]}  h6 {[%clk 0:02:14]} 22. Rhe1 {[%clk 0:02:23]}  Qg5 {[%clk 0:02:08]} 23. Qxg5 {[%clk 0:02:09]}  hxg5 {[%clk 0:02:09]} 24. Re7 {[%clk 0:02:10]}  a3 {[%clk 0:02:08]} 25. b3 {[%clk 0:02:07]}  Kf8 {[%clk 0:02:08]} 26. Kd2 {[%clk 0:02:06]}  g6 {[%clk 0:01:56]} 27. Kd3 {[%clk 0:01:53]}  Rb6 {[%clk 0:01:49]} 28. Kc4 {[%clk 0:01:41]}  Rbb8 {[%clk 0:01:43]} 29. R1e4 {[%clk 0:01:37]}  Re8 {[%clk 0:01:18]} 30. Rxe8+ {[%clk 0:01:06]}  Rxe8 {[%clk 0:01:19]} 31. Kb5 {[%clk 0:01:04]}  Rc8 {[%clk 0:01:07]} 32. Kb6 {[%clk 0:01:04]}  Kg7 {[%clk 0:01:08]} 33. Kb7 {[%clk 0:01:03]}  Rh8 {[%clk 0:01:07]} 34. Re2 {[%clk 0:01:00]}  Rh3 {[%clk 0:01:06]} 35. Kc6 {[%clk 0:00:49]}  Rxf3 {[%clk 0:01:05]} 36. Kxd6 {[%clk 0:00:50]}  Rc3 {[%clk 0:01:02]} 37. Ke7 {[%clk 0:00:43]}  c4 {[%clk 0:01:02]} 38. d6 {[%clk 0:00:42]}  cxb3 {[%clk 0:01:02]} 39. cxb3 {[%clk 0:00:42]}  Rd3 {[%clk 0:00:54]} 40. d7 {[%clk 0:00:42]}  f5 {[%clk 0:00:53]} 41. d8=Q {[%clk 0:00:42]}  Rxd8 {[%clk 0:00:53]} 42. Kxd8 {[%clk 0:00:42]}  Kf6 {[%clk 0:00:53]} 43. Kd7 {[%clk 0:00:41]}  f4 {[%clk 0:00:51]} 44. Kd6 {[%clk 0:00:41]} 1-0


[Site "https://www.chess.com"]

[Event "Titled Tuesday Blitz November 22 Early 2022"]
[White "Kirillov, Dmitry"]
[Black "Johnson, Ben"]
[WhiteFideId "34180572"]
[BlackFideId "2010917"]
[WhiteElo "2095"]
[BlackElo "2163"]
[Result "1-0"]
[Round "03"]
[TimeControl "180+1"]
[Date "2022.11.23"]
[WhiteClock "0:00:06"]
[BlackClock "0:00:06"]

1. e4 {[%clk 0:03:00]}  c5 {[%clk 0:03:00]} 2. Nc3 {[%clk 0:03:00]}  Nc6 {[%clk 0:03:00]} 3. f4 {[%clk 0:03:01]}  g6 {[%clk 0:02:59]} 4. Nf3 {[%clk 0:03:01]}  Bg7 {[%clk 0:03:00]} 5. Bc4 {[%clk 0:03:02]}  e6 {[%clk 0:02:57]} 6. e5 {[%clk 0:03:02]}  d5 {[%clk 0:02:53]} 7. exd6 {[%clk 0:03:03]}  Qxd6 {[%clk 0:02:53]} 8. Ne4 {[%clk 0:03:04]}  Qe7 {[%clk 0:02:47]} 9. d3 {[%clk 0:03:04]}  Nf6 {[%clk 0:02:42]} 10. O-O {[%clk 0:03:04]}  O-O {[%clk 0:02:40]} 11. Qe2 {[%clk 0:03:04]}  Nd5 {[%clk 0:02:29]} 12. c3 {[%clk 0:03:00]}  Na5 {[%clk 0:02:11]} 13. Bb5 {[%clk 0:02:57]}  a6 {[%clk 0:02:11]} 14. Ba4 {[%clk 0:02:56]}  b5 {[%clk 0:02:11]} 15. Bb3 {[%clk 0:02:50]}  Bb7 {[%clk 0:02:05]} 16. Bd2 {[%clk 0:02:48]}  Nc6 {[%clk 0:01:51]} 17. Qf2 {[%clk 0:02:40]}  b4 {[%clk 0:01:14]} 18. Bxd5 {[%clk 0:02:34]}  exd5 {[%clk 0:01:14]} 19. Nxc5 {[%clk 0:02:34]}  bxc3 {[%clk 0:01:09]} 20. bxc3 {[%clk 0:02:33]}  Bc8 {[%clk 0:01:06]} 21. d4 {[%clk 0:02:32]}  Na5 {[%clk 0:01:02]} 22. Rfe1 {[%clk 0:02:31]}  Qd6 {[%clk 0:00:55]} 23. Bc1 {[%clk 0:01:38]}  Bf5 {[%clk 0:00:42]} 24. h3 {[%clk 0:01:27]}  Rfe8 {[%clk 0:00:36]} 25. g4 {[%clk 0:00:55]}  Be4 {[%clk 0:00:28]} 26. Nd2 {[%clk 0:00:51]}  f5 {[%clk 0:00:24]} 27. g5 {[%clk 0:00:47]}  Rac8 {[%clk 0:00:22]} 28. a4 {[%clk 0:00:44]}  Bf8 {[%clk 0:00:21]} 29. Ba3 {[%clk 0:00:44]}  Qc6 {[%clk 0:00:16]} 30. Bb4 {[%clk 0:00:36]}  Nb7 {[%clk 0:00:14]} 31. Ndb3 {[%clk 0:00:25]}  Nxc5 {[%clk 0:00:11]} 32. Nxc5 {[%clk 0:00:20]}  a5 {[%clk 0:00:10]} 33. Ba3 {[%clk 0:00:20]}  Rb8 {[%clk 0:00:09]} 34. Rec1 {[%clk 0:00:16]}  Rb6 {[%clk 0:00:08]} 35. Nxe4 {[%clk 0:00:16]}  dxe4 {[%clk 0:00:05]} 36. Bxf8 {[%clk 0:00:17]}  Rxf8 {[%clk 0:00:05]} 37. c4 {[%clk 0:00:16]}  Rb3 {[%clk 0:00:05]} 38. d5 {[%clk 0:00:16]}  Qd6 {[%clk 0:00:04]} 39. Kg2 {[%clk 0:00:11]}  Rf3 {[%clk 0:00:05]} 40. Qd2 {[%clk 0:00:10]}  Rxf4 {[%clk 0:00:04]} 41. c5 {[%clk 0:00:10]}  Qe5 {[%clk 0:00:04]} 42. d6 {[%clk 0:00:10]}  e3 {[%clk 0:00:04]} 43. Qa2+ {[%clk 0:00:10]}  Kg7 {[%clk 0:00:03]} 44. Rf1 {[%clk 0:00:10]}  Qe4+ {[%clk 0:00:03]} 45. Kg3 {[%clk 0:00:09]}  Rh4 {[%clk 0:00:02]} 46. Qb2+ {[%clk 0:00:08]}  Kg8 {[%clk 0:00:02]} 47. Qg2 {[%clk 0:00:06]}  Qe5+ {[%clk 0:00:02]} 48. Kf3 {[%clk 0:00:05]}  h6 {[%clk 0:00:02]} 49. Ke2 {[%clk 0:00:05]}  Rf4 {[%clk 0:00:02]} 50. Rxf4 {[%clk 0:00:05]}  Qxf4 {[%clk 0:00:03]} 51. Qf3 {[%clk 0:00:06]}  Qc4+ {[%clk 0:00:04]} 52. Kxe3 {[%clk 0:00:06]}  Re8+ {[%clk 0:00:04]} 53. Kf2 {[%clk 0:00:07]}  Qc2+ {[%clk 0:00:05]} 54. Kg3 {[%clk 0:00:07]}  Re2 {[%clk 0:00:05]} 55. d7 {[%clk 0:00:07]}  h5 {[%clk 0:00:05]} 56. d8=Q+ {[%clk 0:00:06]}  Kh7 {[%clk 0:00:06]} 57. Qd7+ {[%clk 0:00:06]} 1-0


[Site "https://www.chess.com"]

[Event "Titled Tuesday Blitz November 22 Early 2022"]
[White "Korchmar, Vasiliy"]
[Black "Kollars, Dmitrij"]
[WhiteFideId "24131750"]
[BlackFideId "12909572"]
[WhiteElo "2370"]
[BlackElo "2584"]
[Result "0-1"]
[Round "03"]
[TimeControl "180+1"]
[Date "2022.11.22"]
[WhiteClock "0:00:06"]
[BlackClock "0:01:32"]

1. e4 {[%clk 0:03:00]}  c6 {[%clk 0:02:53]} 2. d4 {[%clk 0:03:00]}  d5 {[%clk 0:02:54]} 3. e5 {[%clk 0:03:01]}  Bf5 {[%clk 0:02:54]} 4. c4 {[%clk 0:03:01]}  e6 {[%clk 0:02:53]} 5. Nc3 {[%clk 0:03:02]}  Bb4 {[%clk 0:02:51]} 6. cxd5 {[%clk 0:03:01]}  cxd5 {[%clk 0:02:51]} 7. Ne2 {[%clk 0:02:40]}  Nc6 {[%clk 0:02:49]} 8. Ng3 {[%clk 0:02:40]}  Nge7 {[%clk 0:02:45]} 9. Be2 {[%clk 0:02:13]}  Bg6 {[%clk 0:02:43]} 10. O-O {[%clk 0:02:06]}  O-O {[%clk 0:02:39]} 11. Be3 {[%clk 0:01:48]}  Rc8 {[%clk 0:02:36]} 12. Rc1 {[%clk 0:01:47]}  Na5 {[%clk 0:02:33]} 13. h4 {[%clk 0:01:42]}  h6 {[%clk 0:02:23]} 14. h5 {[%clk 0:01:41]}  Bh7 {[%clk 0:02:23]} 15. f4 {[%clk 0:00:47]}  Nc4 {[%clk 0:02:05]} 16. Bxc4 {[%clk 0:00:47]}  Rxc4 {[%clk 0:02:06]} 17. Qg4 {[%clk 0:00:38]}  Nf5 {[%clk 0:02:05]} 18. Nxf5 {[%clk 0:00:37]}  Bxf5 {[%clk 0:02:05]} 19. Qf3 {[%clk 0:00:26]}  Bxc3 {[%clk 0:02:03]} 20. Rxc3 {[%clk 0:00:26]}  Rxc3 {[%clk 0:02:03]} 21. bxc3 {[%clk 0:00:26]}  Qa5 {[%clk 0:02:03]} 22. g4 {[%clk 0:00:19]}  Bd3 {[%clk 0:01:59]} 23. Qf2 {[%clk 0:00:16]}  Bxf1 {[%clk 0:01:58]} 24. f5 {[%clk 0:00:15]}  Bd3 {[%clk 0:01:51]} 25. f6 {[%clk 0:00:13]}  Qxc3 {[%clk 0:01:31]} 26. fxg7 {[%clk 0:00:06]}  Rc8 {[%clk 0:01:32]} 0-1


[Site "https://www.chess.com"]

[Event "Titled Tuesday Blitz November 22 Early 2022"]
[White "Koridze, Lile"]
[Black "Cnejev, Vladimir-Alexandru"]
[WhiteFideId "13612514"]
[BlackFideId "1260898"]
[WhiteElo "2050"]
[BlackElo "2193"]
[Result "1-0"]
[Round "03"]
[TimeControl "180+1"]
[Date "2022.11.23"]
[WhiteClock "0:00:04"]
[BlackClock "0:00:01"]

1. d4 {[%clk 0:03:00]}  d5 {[%clk 0:02:52]} 2. c4 {[%clk 0:03:00]}  e6 {[%clk 0:02:52]} 3. Nf3 {[%clk 0:03:00]}  Nf6 {[%clk 0:02:51]} 4. g3 {[%clk 0:02:59]}  Be7 {[%clk 0:02:51]} 5. Bg2 {[%clk 0:02:59]}  O-O {[%clk 0:02:51]} 6. O-O {[%clk 0:02:58]}  c6 {[%clk 0:02:51]} 7. Nbd2 {[%clk 0:02:51]}  b6 {[%clk 0:02:45]} 8. Qc2 {[%clk 0:02:50]}  Bb7 {[%clk 0:02:45]} 9. e4 {[%clk 0:02:46]}  Na6 {[%clk 0:02:44]} 10. a3 {[%clk 0:02:44]}  c5 {[%clk 0:02:43]} 11. exd5 {[%clk 0:02:41]}  exd5 {[%clk 0:02:40]} 12. dxc5 {[%clk 0:02:39]}  Nxc5 {[%clk 0:02:38]} 13. b4 {[%clk 0:02:15]}  Nce4 {[%clk 0:02:04]} 14. Bb2 {[%clk 0:02:02]}  Rc8 {[%clk 0:02:02]} 15. Rad1 {[%clk 0:01:43]}  Qc7 {[%clk 0:01:51]} 16. Nxe4 {[%clk 0:01:03]}  Nxe4 {[%clk 0:01:45]} 17. Nd2 {[%clk 0:00:41]}  Nxd2 {[%clk 0:01:35]} 18. Rxd2 {[%clk 0:00:37]}  dxc4 {[%clk 0:01:32]} 19. Bh3 {[%clk 0:00:37]}  Rcd8 {[%clk 0:01:30]} 20. Rxd8 {[%clk 0:00:35]}  Rxd8 {[%clk 0:01:31]} 21. Bg2 {[%clk 0:00:25]}  Bxg2 {[%clk 0:01:30]} 22. Kxg2 {[%clk 0:00:26]}  Qc6+ {[%clk 0:01:22]} 23. f3 {[%clk 0:00:26]}  b5 {[%clk 0:01:13]} 24. Re1 {[%clk 0:00:22]}  Bf6 {[%clk 0:00:56]} 25. Bc1 {[%clk 0:00:20]}  h6 {[%clk 0:00:42]} 26. Qe2 {[%clk 0:00:20]}  Qd5 {[%clk 0:00:36]} 27. Be3 {[%clk 0:00:19]}  a6 {[%clk 0:00:34]} 28. Bb6 {[%clk 0:00:18]}  Rd7 {[%clk 0:00:23]} 29. Qe8+ {[%clk 0:00:18]}  Kh7 {[%clk 0:00:24]} 30. Re2 {[%clk 0:00:17]}  c3 {[%clk 0:00:22]} 31. Bc5 {[%clk 0:00:14]}  Qd3 {[%clk 0:00:15]} 32. Re3 {[%clk 0:00:13]}  Qd2+ {[%clk 0:00:09]} 33. Re2 {[%clk 0:00:10]}  Qd5 {[%clk 0:00:09]} 34. Qe3 {[%clk 0:00:08]}  Qf5 {[%clk 0:00:08]} 35. g4 {[%clk 0:00:05]}  Qg6 {[%clk 0:00:08]} 36. Kg3 {[%clk 0:00:04]}  c2 {[%clk 0:00:08]} 37. Qc1 {[%clk 0:00:04]}  Rd3 {[%clk 0:00:04]} 38. Qxc2 {[%clk 0:00:04]}  h5 {[%clk 0:00:04]} 39. h3 {[%clk 0:00:04]}  hxg4 {[%clk 0:00:03]} 40. hxg4 {[%clk 0:00:04]}  Qg5 {[%clk 0:00:01]} 41. Qxd3+ {[%clk 0:00:04]} 1-0


[Site "https://www.chess.com"]

[Event "Titled Tuesday Blitz November 22 Early 2022"]
[White "Kriti Mayur Patel"]
[Black "Buscar, Michael"]
[WhiteFideId "35061780"]
[BlackFideId "2603616"]
[WhiteElo "1306"]
[BlackElo "2010"]
[Result "0-1"]
[Round "03"]
[TimeControl "180+1"]
[Date "2022.11.23"]
[WhiteClock "0:00:01"]
[BlackClock "0:00:04"]

1. e4 {[%clk 0:03:00]}  c5 {[%clk 0:02:59]} 2. d4 {[%clk 0:02:58]}  cxd4 {[%clk 0:02:57]} 3. c3 {[%clk 0:02:58]}  Nf6 {[%clk 0:02:58]} 4. e5 {[%clk 0:02:56]}  Nd5 {[%clk 0:02:58]} 5. Bc4 {[%clk 0:02:55]}  Nb6 {[%clk 0:02:57]} 6. Bb3 {[%clk 0:02:54]}  d5 {[%clk 0:02:57]} 7. exd6 {[%clk 0:02:52]}  Qxd6 {[%clk 0:02:57]} 8. Nf3 {[%clk 0:02:51]}  Bg4 {[%clk 0:02:54]} 9. O-O {[%clk 0:02:48]}  e6 {[%clk 0:02:50]} 10. h3 {[%clk 0:02:33]}  Bh5 {[%clk 0:02:43]} 11. cxd4 {[%clk 0:02:34]}  Nc6 {[%clk 0:02:36]} 12. Nc3 {[%clk 0:02:33]}  Be7 {[%clk 0:02:28]} 13. Ne4 {[%clk 0:02:26]}  Qc7 {[%clk 0:02:16]} 14. Be3 {[%clk 0:02:17]}  O-O {[%clk 0:02:14]} 15. Rc1 {[%clk 0:02:14]}  Rac8 {[%clk 0:02:02]} 16. Ng3 {[%clk 0:02:13]}  Bxf3 {[%clk 0:01:53]} 17. Qxf3 {[%clk 0:02:12]}  Qd7 {[%clk 0:01:44]} 18. Rfd1 {[%clk 0:01:55]}  Nd5 {[%clk 0:01:41]} 19. Nh5 {[%clk 0:01:39]}  Rfd8 {[%clk 0:01:34]} 20. Qg4 {[%clk 0:01:25]}  g6 {[%clk 0:01:26]} 21. Bh6 {[%clk 0:01:20]}  Nf6 {[%clk 0:01:21]} 22. Nxf6+ {[%clk 0:01:17]}  Bxf6 {[%clk 0:01:22]} 23. Qf4 {[%clk 0:01:16]}  Bxd4 {[%clk 0:00:54]} 24. Rc4 {[%clk 0:00:51]}  Qc7 {[%clk 0:00:23]} 25. Rdxd4 {[%clk 0:00:17]}  Rxd4 {[%clk 0:00:20]} 26. Rxd4 {[%clk 0:00:04]}  Qxf4 {[%clk 0:00:14]} 27. Rxf4 {[%clk 0:00:05]}  Ne5 {[%clk 0:00:11]} 28. Rd4 {[%clk 0:00:05]}  f6 {[%clk 0:00:08]} 29. Bf4 {[%clk 0:00:05]}  Re8 {[%clk 0:00:06]} 30. Kh2 {[%clk 0:00:06]}  Nc6 {[%clk 0:00:05]} 31. Rd7 {[%clk 0:00:06]}  g5 {[%clk 0:00:05]} 32. Bd6 {[%clk 0:00:05]}  Na5 {[%clk 0:00:03]} 33. Bb4 {[%clk 0:00:03]}  Nxb3 {[%clk 0:00:03]} 34. axb3 {[%clk 0:00:01]}  b6 {[%clk 0:00:04]} 0-1


[Site "https://www.chess.com"]

[Event "Titled Tuesday Blitz November 22 Early 2022"]
[White "Krysa, Leandro"]
[Black "Zacurdajev, Dmitry"]
[WhiteFideId "116807"]
[BlackFideId "4196309"]
[WhiteElo "2485"]
[BlackElo "2179"]
[Result "0-1"]
[Round "03"]
[TimeControl "180+1"]
[Date "2022.11.23"]
[WhiteClock "0:00:04"]
[BlackClock "0:00:06"]

1. d4 {[%clk 0:03:00]}  d5 {[%clk 0:02:57]} 2. c4 {[%clk 0:03:00]}  e6 {[%clk 0:02:57]} 3. Nc3 {[%clk 0:02:58]}  Nf6 {[%clk 0:02:58]} 4. cxd5 {[%clk 0:02:57]}  exd5 {[%clk 0:02:58]} 5. Bg5 {[%clk 0:02:56]}  Be7 {[%clk 0:02:58]} 6. e3 {[%clk 0:02:56]}  h6 {[%clk 0:02:57]} 7. Bh4 {[%clk 0:02:55]}  c6 {[%clk 0:02:57]} 8. Bd3 {[%clk 0:02:55]}  Nbd7 {[%clk 0:02:56]} 9. Rc1 {[%clk 0:02:53]}  Nb6 {[%clk 0:02:44]} 10. Bb1 {[%clk 0:02:48]}  Be6 {[%clk 0:02:33]} 11. h3 {[%clk 0:02:43]}  Nc4 {[%clk 0:02:17]} 12. Qe2 {[%clk 0:02:38]}  Nd6 {[%clk 0:02:05]} 13. Nf3 {[%clk 0:02:28]}  Nfe4 {[%clk 0:01:57]} 14. Bxe7 {[%clk 0:02:28]}  Qxe7 {[%clk 0:01:58]} 15. O-O {[%clk 0:02:23]}  O-O {[%clk 0:01:52]} 16. Ne5 {[%clk 0:02:19]}  Bf5 {[%clk 0:01:36]} 17. Rfe1 {[%clk 0:02:07]}  f6 {[%clk 0:01:26]} 18. Nd3 {[%clk 0:02:05]}  Qf7 {[%clk 0:01:14]} 19. f3 {[%clk 0:01:58]}  Nxc3 {[%clk 0:01:08]} 20. bxc3 {[%clk 0:01:59]}  Rfe8 {[%clk 0:01:05]} 21. Qf2 {[%clk 0:01:55]}  Nc4 {[%clk 0:01:02]} 22. Nb2 {[%clk 0:01:52]}  Bxb1 {[%clk 0:01:02]} 23. Nxc4 {[%clk 0:01:46]}  dxc4 {[%clk 0:00:49]} 24. Rxb1 {[%clk 0:01:47]}  b5 {[%clk 0:00:50]} 25. e4 {[%clk 0:01:45]}  Qe7 {[%clk 0:00:49]} 26. Re3 {[%clk 0:01:29]}  a5 {[%clk 0:00:49]} 27. Qe2 {[%clk 0:01:26]}  Qa3 {[%clk 0:00:45]} 28. Re1 {[%clk 0:01:22]}  Re7 {[%clk 0:00:36]} 29. g4 {[%clk 0:01:21]}  Qa4 {[%clk 0:00:30]} 30. h4 {[%clk 0:01:18]}  Rae8 {[%clk 0:00:24]} 31. g5 {[%clk 0:01:16]}  hxg5 {[%clk 0:00:24]} 32. hxg5 {[%clk 0:01:15]}  fxg5 {[%clk 0:00:24]} 33. e5 {[%clk 0:01:13]}  Qa3 {[%clk 0:00:16]} 34. Kh2 {[%clk 0:01:03]}  Re6 {[%clk 0:00:16]} 35. Kg3 {[%clk 0:01:01]}  Qf8 {[%clk 0:00:14]} 36. Rh1 {[%clk 0:00:53]}  Qf4+ {[%clk 0:00:14]} 37. Kg2 {[%clk 0:00:53]}  Rh6 {[%clk 0:00:15]} 38. Re4 {[%clk 0:00:50]}  Qf5 {[%clk 0:00:13]} 39. Rxh6 {[%clk 0:00:43]}  gxh6 {[%clk 0:00:14]} 40. e6 {[%clk 0:00:43]}  Kg7 {[%clk 0:00:07]} 41. a4 {[%clk 0:00:35]}  bxa4 {[%clk 0:00:04]} 42. Qxc4 {[%clk 0:00:33]}  a3 {[%clk 0:00:05]} 43. Qa2 {[%clk 0:00:30]}  Rf8 {[%clk 0:00:05]} 44. Qf2 {[%clk 0:00:19]}  g4 {[%clk 0:00:05]} 45. e7 {[%clk 0:00:03]}  gxf3+ {[%clk 0:00:05]} 46. Kf1 {[%clk 0:00:03]}  Qxe4 {[%clk 0:00:05]} 47. Qg3+ {[%clk 0:00:01]}  Kf7 {[%clk 0:00:05]} 48. exf8=Q+ {[%clk 0:00:02]}  Kxf8 {[%clk 0:00:06]} 49. Qd6+ {[%clk 0:00:03]}  Kf7 {[%clk 0:00:06]} 50. Qd7+ {[%clk 0:00:04]}  Kf6 {[%clk 0:00:06]} 51. Qd6+ {[%clk 0:00:04]}  Kg5 {[%clk 0:00:06]} 0-1


[Site "https://www.chess.com"]

[Event "Titled Tuesday Blitz November 22 Early 2022"]
[White "Kulkarni, Vikramaditya"]
[Black "Piesik, Piotr"]
[WhiteFideId "5009847"]
[BlackFideId "1136194"]
[WhiteElo "2273"]
[BlackElo "2316"]
[Result "1/2-1/2"]
[Round "03"]
[TimeControl "180+1"]
[Date "2022.11.23"]
[WhiteClock "0:00:04"]
[BlackClock "0:00:10"]

1. e4 {[%clk 0:03:00]}  g6 {[%clk 0:03:00]} 2. d4 {[%clk 0:02:59]}  Bg7 {[%clk 0:03:00]} 3. Nf3 {[%clk 0:02:59]}  c6 {[%clk 0:03:01]} 4. c3 {[%clk 0:02:59]}  d6 {[%clk 0:03:01]} 5. h3 {[%clk 0:02:57]}  Nf6 {[%clk 0:03:01]} 6. Bd3 {[%clk 0:02:58]}  O-O {[%clk 0:03:02]} 7. O-O {[%clk 0:02:57]}  Nbd7 {[%clk 0:03:03]} 8. Re1 {[%clk 0:02:56]}  e5 {[%clk 0:03:03]} 9. Bg5 {[%clk 0:02:52]}  Re8 {[%clk 0:03:03]} 10. dxe5 {[%clk 0:02:49]}  dxe5 {[%clk 0:03:03]} 11. Bc4 {[%clk 0:02:49]}  Qe7 {[%clk 0:03:00]} 12. a4 {[%clk 0:02:44]}  a5 {[%clk 0:02:58]} 13. Nbd2 {[%clk 0:02:42]}  Nc5 {[%clk 0:02:58]} 14. Bh4 {[%clk 0:02:37]}  Qc7 {[%clk 0:02:56]} 15. Qe2 {[%clk 0:02:35]}  Nh5 {[%clk 0:02:53]} 16. Ng5 {[%clk 0:02:32]}  Ne6 {[%clk 0:02:51]} 17. Nxe6 {[%clk 0:02:26]}  Bxe6 {[%clk 0:02:52]} 18. Bxe6 {[%clk 0:02:26]}  Rxe6 {[%clk 0:02:53]} 19. Qe3 {[%clk 0:02:22]}  Bf8 {[%clk 0:02:42]} 20. Kh2 {[%clk 0:02:16]}  Be7 {[%clk 0:02:23]} 21. Bg3 {[%clk 0:02:14]}  Nxg3 {[%clk 0:02:22]} 22. fxg3 {[%clk 0:02:14]}  Rd8 {[%clk 0:02:20]} 23. Nc4 {[%clk 0:02:14]}  Rd7 {[%clk 0:02:02]} 24. Rad1 {[%clk 0:02:12]}  Bd8 {[%clk 0:02:01]} 25. Rf1 {[%clk 0:02:02]}  h5 {[%clk 0:01:58]} 26. Qc5 {[%clk 0:01:53]}  Rxd1 {[%clk 0:01:50]} 27. Rxd1 {[%clk 0:01:52]}  b6 {[%clk 0:01:50]} 28. Qf2 {[%clk 0:01:44]}  b5 {[%clk 0:01:45]} 29. Na3 {[%clk 0:01:33]}  bxa4 {[%clk 0:01:34]} 30. Nc4 {[%clk 0:01:32]}  Be7 {[%clk 0:01:28]} 31. Qb6 {[%clk 0:01:28]}  Qxb6 {[%clk 0:01:28]} 32. Nxb6 {[%clk 0:01:27]}  a3 {[%clk 0:01:28]} 33. bxa3 {[%clk 0:01:26]}  Bxa3 {[%clk 0:01:29]} 34. Nc4 {[%clk 0:01:19]}  Be7 {[%clk 0:01:19]} 35. Nxa5 {[%clk 0:01:17]}  Kg7 {[%clk 0:01:16]} 36. Rd7 {[%clk 0:01:16]}  Kf6 {[%clk 0:01:09]} 37. Kg1 {[%clk 0:01:05]}  Bc5+ {[%clk 0:01:06]} 38. Kf1 {[%clk 0:01:04]}  Kg7 {[%clk 0:00:44]} 39. Rd3 {[%clk 0:01:02]}  f5 {[%clk 0:00:39]} 40. Rd7+ {[%clk 0:00:59]}  Kf6 {[%clk 0:00:39]} 41. Nb3 {[%clk 0:00:50]}  Bb6 {[%clk 0:00:29]} 42. Rb7 {[%clk 0:00:46]}  Be3 {[%clk 0:00:28]} 43. Ke2 {[%clk 0:00:45]}  f4 {[%clk 0:00:28]} 44. Na5 {[%clk 0:00:42]}  Bg1 {[%clk 0:00:21]} 45. Kf1 {[%clk 0:00:27]}  Bc5 {[%clk 0:00:20]} 46. Nb3 {[%clk 0:00:20]}  Be3 {[%clk 0:00:19]} 47. Ke2 {[%clk 0:00:18]}  Rd6 {[%clk 0:00:19]} 48. Rc7 {[%clk 0:00:17]}  Bb6 {[%clk 0:00:18]} 49. Rb7 {[%clk 0:00:17]}  Bg1 {[%clk 0:00:18]} 50. gxf4 {[%clk 0:00:16]}  exf4 {[%clk 0:00:18]} 51. Rb4 {[%clk 0:00:15]}  g5 {[%clk 0:00:16]} 52. Nd2 {[%clk 0:00:11]}  Be3 {[%clk 0:00:15]} 53. e5+ {[%clk 0:00:09]}  Kxe5 {[%clk 0:00:14]} 54. Nc4+ {[%clk 0:00:10]}  Kd5 {[%clk 0:00:14]} 55. Nxd6 {[%clk 0:00:09]}  Kxd6 {[%clk 0:00:15]} 56. Kf3 {[%clk 0:00:09]}  Ke5 {[%clk 0:00:13]} 57. Re4+ {[%clk 0:00:09]}  Kf5 {[%clk 0:00:14]} 58. g4+ {[%clk 0:00:09]}  hxg4+ {[%clk 0:00:11]} 59. hxg4+ {[%clk 0:00:10]}  Kf6 {[%clk 0:00:12]} 60. Re8 {[%clk 0:00:10]}  Bd2 {[%clk 0:00:10]} 61. c4 {[%clk 0:00:08]}  Be3 {[%clk 0:00:10]} 62. Ke4 {[%clk 0:00:08]}  c5 {[%clk 0:00:10]} 63. Re5 {[%clk 0:00:07]}  Bd4 {[%clk 0:00:09]} 64. Rf5+ {[%clk 0:00:06]}  Kg6 {[%clk 0:00:10]} 65. Kd5 {[%clk 0:00:06]}  Be3 {[%clk 0:00:09]} 66. Ke4 {[%clk 0:00:06]}  Bd4 {[%clk 0:00:09]} 67. Rf8 {[%clk 0:00:04]}  Be3 {[%clk 0:00:10]} 68. Rf5 {[%clk 0:00:04]}  Bd4 {[%clk 0:00:10]} 1/2-1/2


[Site "https://www.chess.com"]

[Event "Titled Tuesday Blitz November 22 Early 2022"]
[White "Kvaloy, Aksel Bu"]
[Black "Kim, Sergey"]
[WhiteFideId "1528815"]
[BlackFideId "13700570"]
[WhiteElo "2184"]
[BlackElo "2600"]
[Result "0-1"]
[Round "03"]
[TimeControl "180+1"]
[Date "2022.11.23"]
[WhiteClock "0:01:38"]
[BlackClock "0:01:42"]

1. e4 {[%clk 0:03:00]}  e5 {[%clk 0:02:59]} 2. Nf3 {[%clk 0:02:50]}  Nc6 {[%clk 0:02:59]} 3. d4 {[%clk 0:02:44]}  exd4 {[%clk 0:02:59]} 4. Bc4 {[%clk 0:02:43]}  Nf6 {[%clk 0:02:59]} 5. e5 {[%clk 0:02:42]}  d5 {[%clk 0:02:58]} 6. Bb5 {[%clk 0:02:43]}  Ne4 {[%clk 0:02:58]} 7. Nxd4 {[%clk 0:02:42]}  Bc5 {[%clk 0:02:58]} 8. Be3 {[%clk 0:02:41]}  Bxd4 {[%clk 0:02:58]} 9. Bxd4 {[%clk 0:02:40]}  O-O {[%clk 0:02:59]} 10. O-O {[%clk 0:02:41]}  Nxd4 {[%clk 0:02:57]} 11. Qxd4 {[%clk 0:02:41]}  c5 {[%clk 0:02:57]} 12. Qd1 {[%clk 0:02:41]}  f5 {[%clk 0:02:44]} 13. exf6 {[%clk 0:02:16]}  Nxf6 {[%clk 0:02:43]} 14. Nd2 {[%clk 0:02:14]}  Bg4 {[%clk 0:02:39]} 15. f3 {[%clk 0:02:12]}  Bf5 {[%clk 0:02:34]} 16. c3 {[%clk 0:02:12]}  Qb6 {[%clk 0:02:24]} 17. Qe2 {[%clk 0:01:58]}  a6 {[%clk 0:02:19]} 18. Ba4 {[%clk 0:01:46]}  Qxb2 {[%clk 0:02:06]} 19. g4 {[%clk 0:01:46]}  Bg6 {[%clk 0:02:03]} 20. Qf2 {[%clk 0:01:42]}  b5 {[%clk 0:01:55]} 21. Bb3 {[%clk 0:01:40]}  c4 {[%clk 0:01:55]} 22. Bd1 {[%clk 0:01:39]}  Qxa1 {[%clk 0:01:50]} 23. g5 {[%clk 0:01:37]}  Qxc3 {[%clk 0:01:42]} 24. Qd4 {[%clk 0:01:38]}  Qxd4+ {[%clk 0:01:42]} 0-1


[Site "https://www.chess.com"]